fUST/lending_fUST_20240209
["ID","MTS","AMOUNT","RATE_DAILY","PERIOD"]
[313625068,1707487832776,-6302.21622111,0.0002,2]
[313625069,1707487832785,-155.0,0.00020486,2]
[313625070,1707487832794,-681.08563988,0.00020487,2]
[313625071,1707487832803,-1207.26,0.00020489,3]
[313625072,1707487832813,-2254.79,0.0002049,3]
[313625073,1707487832823,-1711.8630137,0.00020499,2]
[313625074,1707487832832,-17640.49452056,0.00020499,2]
[313625098,1707487839563,-2720.42581278,0.00018022,2]
[313625099,1707487839573,-6434.40605113,0.00020499,2]
[313625100,1707487839583,-16595.11172829,0.000205,2]
[313625101,1707487839593,-19124.88822616,0.00020788,2]
[313625102,1707487839602,-602.94762344,0.0002079,2]
[313625103,1707487839612,-602.94762341,0.00020818,2]
[313625104,1707487839622,-280.0,0.00020824,2]
[313625105,1707487839631,-602.94762341,0.00020845,2]
[313625106,1707487839640,-602.94762341,0.00020873,2]
[313625107,1707487839650,-602.94762341,0.000209,2]
[313625108,1707487839659,-1097.90605298,0.000209,2]
[313625109,1707487839668,-1878.99,0.00020989,3]
[313625110,1707487839679,-155.29306019,0.00020998,2]
[313625112,1707487839689,-181.58448589,0.00020998,2]
[313625113,1707487839698,-294.63300604,0.00020998,2]
[313625114,1707487839706,-1746.18903205,0.00020998,2]
[313625115,1707487839715,-151.0,0.00020999,2]
[313625116,1707487839724,-151.0,0.00020999,2]
[313625117,1707487839733,-151.0,0.00020999,2]
[313625118,1707487839742,-790.493885,0.00020999,2]
[313625119,1707487839752,-790.493885,0.00020999,2]
[313625120,1707487839761,-151.0,0.00020999,2]
[313625121,1707487839770,-151.0,0.00020999,2]
[313625122,1707487839779,-153.419878,0.00020999,2]
[313625123,1707487839789,-151.0,0.00020999,2]
[313625124,1707487839798,-151.34148,0.00020999,2]
[313625125,1707487839808,-151.0,0.00020999,2]
[313625126,1707487839818,-151.0,0.00020999,2]
[313625127,1707487839827,-500.0,0.00020999,2]
[313625128,1707487839836,-447.03849315,0.00020999,2]
[313625129,1707487839845,-500.0,0.00020999,2]
[313625130,1707487839854,-500.0,0.00020999,2]
[313625131,1707487839863,-500.0,0.00020999,2]
[313625132,1707487839874,-500.0,0.00020999,2]
[313625133,1707487839883,-500.0,0.00020999,2]
[313625134,1707487839892,-209.02620281,0.00020999,2]
[313625135,1707487839901,-500.0,0.00020999,2]
[313625136,1707487839910,-500.0,0.00020999,2]
[313625137,1707487839920,-500.0,0.00020999,2]
[313625138,1707487839928,-500.0,0.00020999,2]
[313625139,1707487839937,-500.0,0.00020999,2]
[313625140,1707487839946,-500.0,0.00020999,2]
[313625141,1707487839955,-500.0,0.00020999,2]
[313625142,1707487839965,-500.0,0.00020999,2]
[313625143,1707487839975,-500.0,0.00020999,2]
[313625144,1707487839984,-500.0,0.00020999,2]
[313625145,1707487839993,-500.0,0.00020999,2]
[313625146,1707487840002,-500.0,0.00020999,2]
[313625147,1707487840011,-500.0,0.00020999,2]
[313625148,1707487840021,-500.0,0.00020999,2]
[313625149,1707487840030,-500.0,0.00020999,2]
[313625150,1707487840040,-500.0,0.00020999,2]
[313625151,1707487840049,-500.0,0.00020999,2]
[313625152,1707487840059,-500.0,0.00020999,2]
[313625153,1707487840069,-500.0,0.00020999,2]
[313625154,1707487840078,-500.0,0.00020999,2]
[313625155,1707487840087,-500.0,0.00020999,2]
[313625156,1707487840096,-500.0,0.00020999,2]
[313625157,1707487840104,-500.0,0.00020999,2]
[313625158,1707487840126,-500.0,0.00020999,2]
[313625159,1707487840135,-500.0,0.00020999,2]
[313625160,1707487840145,-500.0,0.00020999,2]
[313625161,1707487840154,-500.0,0.00020999,2]
[313625162,1707487840164,-500.0,0.00020999,2]
[313625163,1707487840174,-500.0,0.00020999,2]
[313625164,1707487840183,-500.0,0.00020999,2]
[313625165,1707487840193,-500.0,0.00020999,2]
[313625166,1707487840202,-335.73765327,0.00020999,2]
[313625167,1707487840212,-500.0,0.00020999,2]
[313625168,1707487840222,-500.0,0.00020999,2]
[313625169,1707487840231,-500.0,0.00020999,2]
[313625170,1707487840241,-500.0,0.00020999,2]
[313625171,1707487840251,-500.0,0.00020999,2]
[313625172,1707487840260,-624.01419474,0.00020999,2]
[313625173,1707487840272,-500.0,0.00020999,2]
[313625174,1707487840283,-500.0,0.00020999,2]
[313625175,1707487840293,-500.0,0.00020999,2]
[313625176,1707487840302,-500.0,0.00020999,2]
[313625177,1707487840313,-500.0,0.00020999,2]
[313625178,1707487840323,-576.94129592,0.00020999,2]
[313625179,1707487840333,-528.81782754,0.00020999,2]
[313625180,1707487840470,-414.69464672,0.00020999,2]
[313625181,1707487840481,-500.0,0.00020999,2]
[313625182,1707487840490,-500.0,0.00020999,2]
[313625183,1707487840500,-500.0,0.00020999,2]
[313625184,1707487840510,-301.06076008,0.00020999,2]
[313625185,1707487840525,-198.93923992,0.00020999,2]
[313625186,1707487840535,-297.91165688,0.00020999,2]
[313625248,1707487845156,-1319.22734161,0.00020998,2]
[313625250,1707487845165,-167.2204646,0.00020998,2]
[313625252,1707487845175,-411.85931457,0.00020998,2]
[313625254,1707487845184,-202.08834312,0.00020999,2]
[313625255,1707487845193,-500.0,0.00020999,2]
[313625257,1707487845203,-500.0,0.00020999,2]
[313625260,1707487845213,-500.0,0.00020999,2]
[313625262,1707487845222,-500.0,0.00020999,2]
[313625265,1707487845232,-500.0,0.00020999,2]
[313625268,1707487845241,-500.0,0.00020999,2]
[313625270,1707487845251,-500.0,0.00020999,2]
[313625273,1707487845260,-500.0,0.00020999,2]
[313625277,1707487845272,-500.0,0.00020999,2]
[313625279,1707487845283,-500.0,0.00020999,2]
[313625281,1707487845293,-500.0,0.00020999,2]
[313625284,1707487845302,-500.0,0.00020999,2]
[313625286,1707487845312,-500.0,0.00020999,2]
[313625288,1707487845322,-500.0,0.00020999,2]
[313625290,1707487845331,-500.0,0.00020999,2]
[313625293,1707487845341,-500.0,0.00020999,2]
[313625295,1707487845352,-500.0,0.00020999,2]
[313625296,1707487845362,-500.0,0.00020999,2]
[313625298,1707487845372,-500.0,0.00020999,2]
[313625300,1707487845383,-500.0,0.00020999,2]
[313625302,1707487845393,-486.067536,0.00020999,2]
[313625305,1707487845412,-13.932464,0.00020999,2]
[313625307,1707487845422,-364.79982076,0.00020999,2]
[313625309,1707487845432,-160.52452877,0.00020999,2]
[313625310,1707487845445,-339.47547123,0.00020999,2]
[313625311,1707487845454,-500.0,0.00020999,2]
[313625312,1707487845464,-500.0,0.00020999,2]
[313625314,1707487845473,-500.0,0.00020999,2]
[313625315,1707487845482,-500.0,0.00020999,2]
[313625316,1707487845491,-618.17749289,0.00020999,2]
[313625317,1707487845500,-443.24807766,0.00020999,2]
[313625318,1707487845512,-56.75192234,0.00020999,2]
[313625319,1707487845522,-500.0,0.00020999,2]
[313625320,1707487845531,-618.17749289,0.00020999,2]
[313625321,1707487845540,-500.0,0.00020999,2]
[313625322,1707487845550,-618.17749289,0.00020999,2]
[313625323,1707487845559,-500.0,0.00020999,2]
[313625324,1707487845568,-500.0,0.00020999,2]
[313625325,1707487845577,-618.17749289,0.00020999,2]
[313625326,1707487845586,-425.30048821,0.00020999,2]
[313625327,1707487845598,-190.82726439,0.00020999,2]
[313625328,1707487845607,-500.0,0.00020999,2]
[313625329,1707487845616,-618.17749289,0.00020999,2]
[313625330,1707487845626,-500.0,0.00020999,2]
[313625331,1707487845635,-500.0,0.00020999,2]
[313625332,1707487845644,-618.17749289,0.00020999,2]
[313625333,1707487845653,-614.07606967,0.00020999,2]
[313625341,1707487847267,-490.16024973,0.00020998,2]
[313625342,1707487847326,-5812.05597138,0.00020998,2]
[313625343,1707487847335,-155.79012117,0.00020998,2]
[313625344,1707487847344,-2197.65249298,0.00020998,2]
[313625345,1707487847354,-18.17575086,0.00020999,2]
[313625346,1707487847363,-500.0,0.00020999,2]
[313625347,1707487847373,-500.0,0.00020999,2]
[313625348,1707487847382,-618.17749289,0.00020999,2]
[313625349,1707487847391,-565.41419203,0.00020999,2]
[313625350,1707487847400,-500.0,0.00020999,2]
[313625351,1707487847410,-618.17749289,0.00020999,2]
[313625352,1707487847418,-500.0,0.00020999,2]
[313625353,1707487847428,-500.0,0.00020999,2]
[313625354,1707487847437,-500.0,0.00020999,2]
[313625355,1707487847446,-618.17749289,0.00020999,2]
[313625356,1707487847455,-618.17749289,0.00020999,2]
[313625357,1707487847464,-500.0,0.00020999,2]
[313625358,1707487847474,-500.0,0.00020999,2]
[313625359,1707487847483,-500.0,0.00020999,2]
[313625360,1707487847492,-618.17749289,0.00020999,2]
[313625361,1707487847502,-500.0,0.00020999,2]
[313625362,1707487847511,-500.0,0.00020999,2]
[313625363,1707487847520,-618.17749289,0.00020999,2]
[313625364,1707487847529,-500.0,0.00020999,2]
[313625365,1707487847538,-500.0,0.00020999,2]
[313625366,1707487847547,-618.17749289,0.00020999,2]
[313625367,1707487847556,-500.0,0.00020999,2]
[313625368,1707487847565,-618.17749289,0.00020999,2]
[313625369,1707487847574,-500.0,0.00020999,2]
[313625370,1707487847583,-500.0,0.00020999,2]
[313625371,1707487847593,-618.17749289,0.00020999,2]
[313625372,1707487847601,-500.0,0.00020999,2]
[313625373,1707487847611,-618.17749289,0.00020999,2]
[313625374,1707487847620,-500.0,0.00020999,2]
[313625375,1707487847630,-500.0,0.00020999,2]
[313625376,1707487847639,-618.17749289,0.00020999,2]
[313625377,1707487847648,-500.0,0.00020999,2]
[313625378,1707487847657,-618.17749289,0.00020999,2]
[313625379,1707487847667,-500.0,0.00020999,2]
[313625380,1707487847676,-618.17749289,0.00020999,2]
[313625381,1707487847685,-618.17749289,0.00020999,2]
[313625382,1707487847694,-618.17749289,0.00020999,2]
[313625383,1707487847703,-618.17749289,0.00020999,2]
[313625384,1707487847712,-500.0,0.00020999,2]
[313625385,1707487847722,-618.17749289,0.00020999,2]
[313625386,1707487847732,-618.17749289,0.00020999,2]
[313625387,1707487847741,-618.17749289,0.00020999,2]
[313625388,1707487847750,-618.17749289,0.00020999,2]
[313625389,1707487847760,-618.17749289,0.00020999,2]
[313625390,1707487847769,-618.17749289,0.00020999,2]
[313625391,1707487847778,-618.17749289,0.00020999,2]
[313625392,1707487847787,-618.17749289,0.00020999,2]
[313625393,1707487847796,-618.17749289,0.00020999,2]
[313625394,1707487847805,-618.17749289,0.00020999,2]
[313625395,1707487847814,-618.17749289,0.00020999,2]
[313625396,1707487847824,-618.17749289,0.00020999,2]
[313625397,1707487847835,-618.17749289,0.00020999,2]
[313625398,1707487847845,-618.17749289,0.00020999,2]
[313625399,1707487847855,-618.17749289,0.00020999,2]
[313625400,1707487847864,-618.17749289,0.00020999,2]
[313625401,1707487847874,-618.17749289,0.00020999,2]
[313625402,1707487847883,-618.17749289,0.00020999,2]
[313625403,1707487847893,-618.17749289,0.00020999,2]
[313625404,1707487847905,-618.17749289,0.00020999,2]
[313625405,1707487847915,-618.17749289,0.00020999,2]
[313625406,1707487847925,-618.17749289,0.00020999,2]
[313625407,1707487847937,-618.17749289,0.00020999,2]
[313625408,1707487847948,-618.17749289,0.00020999,2]
[313625409,1707487847957,-618.17749289,0.00020999,2]
[313625410,1707487847967,-618.17749289,0.00020999,2]
[313625411,1707487847977,-618.17749289,0.00020999,2]
[313625412,1707487847987,-618.17749289,0.00020999,2]
[313625413,1707487847996,-618.17749289,0.00020999,2]
[313625414,1707487848005,-618.17749289,0.00020999,2]
[313625415,1707487848015,-618.17749289,0.00020999,2]
[313625416,1707487848025,-618.17749289,0.00020999,2]
[313625417,1707487848034,-628.48045109,0.00020999,2]
[313625418,1707487848043,-628.48045109,0.00020999,2]
[313625419,1707487848052,-628.48045109,0.00020999,2]
[313625420,1707487848061,-628.48045109,0.00020999,2]
[313625421,1707487848070,-628.48045109,0.00020999,2]
[313625422,1707487848079,-628.48045109,0.00020999,2]
[313625423,1707487848088,-628.48045109,0.00020999,2]
[313625424,1707487848098,-628.48045109,0.00020999,2]
[313625426,1707487848107,-628.48045109,0.00020999,2]
[313625427,1707487848116,-2270.74749848,0.00021,2]
[313625429,1707487848127,-170832.87236402,0.00021,2]
[313625431,1707487848136,-151.0,0.00021,2]
[313625433,1707487848145,-151.0,0.00021,2]
[313625434,1707487848154,-151.0,0.00021,2]
[313625436,1707487848163,-790.493885,0.00021,2]
[313625437,1707487848172,-790.493885,0.00021,2]
[313625439,1707487848181,-151.0,0.00021,2]
[313625441,1707487848190,-151.0,0.00021,2]
[313625443,1707487848200,-151.0,0.00021,2]
[313625444,1707487848208,-2378.24653,0.00021,2]
[313625446,1707487848217,-2378.24653,0.00021,2]
[313625447,1707487848226,-151.0,0.00021,2]
[313625456,1707487848311,-153.760608,0.00021,2]
[313625458,1707487848321,-1294.37276285,0.00021098,2]
[313625460,1707487848331,-6882.12917475,0.00021098,2]
[313625462,1707487848340,-176.03211544,0.00021098,2]
[313625465,1707487848350,-155.45691459,0.00021098,2]
[313625467,1707487848362,-1505.81801465,0.00021098,3]
[313625469,1707487848371,-550.33813105,0.00021098,2]
[313625471,1707487848381,-1556.32323842,0.00021098,2]
[313625472,1707487848390,-218.06808199,0.00021098,2]
[313625474,1707487848400,-589.07952239,0.00021098,2]
[313625476,1707487848409,-2110.54162964,0.00021098,2]
[313625478,1707487848418,-155.78078699,0.00021099,2]
[313625480,1707487848427,-155.07598723,0.00021099,2]
[313625482,1707487848437,-7062.47353951,0.00021099,2]
[313625484,1707487848446,-677.99258446,0.00021099,2]
[313625486,1707487848456,-2292.66954032,0.000211,2]
[313625638,1707488494921,272.593128,0.00017676,2]
[313625644,1707488515449,1000.0,0.00029,30]
[313625682,1707488754043,24900.0,0.00017597,2]
[313625719,1707488955831,154.9690062,0.00017597,2]
[313625720,1707488960737,320.97964605,0.00017597,2]
[313625721,1707488961105,180041.6536362,0.00017597,2]
[313625722,1707488971798,155.81649543,0.00017597,2]
[313625782,1707489031826,-719.85189847,0.00018509,2]
[313625783,1707489031836,-154.9690062,0.0001851,2]
[313625784,1707489031845,-3351.44730823,0.0001851,2]
[313625900,1707489037996,-4633.24833596,0.0001851,2]
[313625902,1707489038006,-2101.51786212,0.0001851,2]
[313625904,1707489038016,-2719.07889388,0.00018511,5]
[313625906,1707489038027,-232.52505957,0.00018511,2]
[313625908,1707489038036,-500.0,0.00018512,2]
[313625910,1707489038045,-906.52991444,0.00018512,2]
[313625912,1707489038054,-981.02470086,0.00018513,2]
[313625915,1707489038064,-154.9690062,0.00018514,2]
[313625916,1707489038073,-322.40745142,0.00018514,2]
[313625918,1707489038083,-154.9690062,0.00018514,3]
[313625920,1707489038093,-1794.34716921,0.0001852,2]
[313625922,1707489038103,-154.9690062,0.00018546,2]
[313625924,1707489038112,-228.802749,0.00018819,2]
[313625927,1707489038122,-766.37885908,0.00018898,2]
[313625929,1707489038131,-1781.57891161,0.000189,2]
[313625931,1707489038141,-200.0,0.00019444,2]
[313625933,1707489038150,-1024.95672906,0.000195,2]
[313625935,1707489038160,-6302.21622111,0.0002,2]
[313625937,1707489038169,-681.08563988,0.0002,2]
[313625939,1707489038178,-1202.14018038,0.00020886,2]
[313625941,1707489038187,-362.41537928,0.00020887,2]
[313625943,1707489038196,-1305.42193636,0.00020897,2]
[313625945,1707489038206,-324.06509508,0.00020897,2]
[313625947,1707489038215,-896.44002472,0.00020897,3]
[313625949,1707489038224,-154.98450155,0.00020898,2]
[313625951,1707489038234,-1761.02181363,0.00020898,2]
[313625953,1707489038243,-32330.17585299,0.00020899,2]
[313625955,1707489038252,-716.22644794,0.00020998,2]
[313625957,1707489038261,-5163.2,0.00021078,3]
[313625959,1707489038270,-4302.66,0.00021078,3]
[313625961,1707489038281,-6195.83,0.00021088,3]
[313625963,1707489038290,-2050.76932462,0.00021098,2]
[313625965,1707489038299,-842.10257973,0.00021098,2]
[313625967,1707489038309,-471.18358776,0.00021098,2]
[313625969,1707489038319,-1687.55863151,0.00021098,2]
[313625971,1707489038328,-155.31053164,0.00021098,2]
[313625973,1707489038337,-1946.65158881,0.00021098,2]
[313625975,1707489038346,-306.7759326,0.00021098,2]
[313625977,1707489038355,-1859.33573199,0.00021098,2]
[313625979,1707489038363,-563.21509038,0.00021098,2]
[313625981,1707489038374,-161.52708074,0.00021098,2]
[313625983,1707489038383,-3949.2053521,0.00021098,2]
[313625985,1707489038392,-949.14305323,0.00021098,3]
[313625987,1707489038401,-155.09923176,0.00021099,2]
[313625989,1707489038411,-200.0,0.000211,2]
[313625990,1707489038420,-341.27415596,0.000211,2]
[313625992,1707489038430,-205.19456612,0.000211,2]
[313625995,1707489038439,-810.83834793,0.000211,2]
[313625996,1707489038448,-280.0,0.00021389,7]
[313625998,1707489038458,-166.666666,0.00021918,2]
[313626001,1707489038468,-427.41735822,0.00022,2]
[313626003,1707489038477,-294.40214372,0.00022,4]
[313626005,1707489038486,-326.56038554,0.00022,2]
[313626006,1707489038495,-155.3088614,0.00022188,2]
[313626008,1707489038506,-166.666666,0.00022431,2]
[313626010,1707489038516,-166.666666,0.00022944,2]
[313626013,1707489038527,-1206.93829696,0.00023,2]
[313626015,1707489038540,-73.53240055,0.00023,2]
[313626017,1707489038549,-213.85399769,0.00023,2]
[313626019,1707489038558,-9971.50776896,0.00023,2]
[313626021,1707489038568,-1744.17940929,0.00023206,2]
[313626023,1707489038577,-5000.0,0.00023207,2]
[313626025,1707489038586,-177.58748242,0.00023207,2]
[313626027,1707489038595,-5000.0,0.00023207,2]
[313626028,1707489038604,-582.65456298,0.00023207,2]
[313626030,1707489038616,-3852.69029426,0.00023207,2]
[313626033,1707489038626,-10635.03282073,0.00023207,2]
[313626034,1707489038635,-11596.4993277,0.00023207,2]
[313626036,1707489038645,-1152.09429605,0.00023333,2]
[313626038,1707489038655,-166.666666,0.00023456,2]
[313626041,1707489038664,-391.0,0.00023528,7]
[313626043,1707489038674,-651.02501521,0.000239,2]
[313626045,1707489038684,-1781.57891161,0.000239,2]
[313626047,1707489038695,-166.666666,0.00023969,2]
[313626049,1707489038705,-1000.0,0.00023999,3]
[313626051,1707489038716,-1028.09711993,0.00023999,3]
[313626053,1707489038725,-592.9693191,0.00024,2]
[313626055,1707489038735,-4040.85811813,0.00024,2]
[313626057,1707489038744,-1000.0,0.00024,24]
[313626059,1707489038753,-500.24501978,0.0002448,5]
[313626061,1707489038762,-166.666666,0.00024482,2]
[313626063,1707489038771,-646.6047148,0.000245,2]
[313626065,1707489038783,-380.54307153,0.00024555,2]
[313626067,1707489038793,-500.32433007,0.00024556,2]
[313626069,1707489038802,-500.0,0.00024556,2]
[313626071,1707489038811,-500.0,0.00024556,2]
[313626073,1707489038820,-649.16556257,0.00024556,2]
[313626075,1707489038829,-500.0,0.00024556,2]
[313626077,1707489038838,-624.44961521,0.00024556,2]
[313626079,1707489038847,-500.0,0.00024556,2]
[313626081,1707489038857,-500.0,0.00024556,2]
[313626083,1707489038867,-847.14884633,0.00024556,2]
[313626085,1707489038876,-500.0,0.00024556,2]
[313626087,1707489038886,-543.35433943,0.00024556,2]
[313626089,1707489038895,-326.28431798,0.00024556,2]
[313626091,1707489038904,-847.14884633,0.00024556,2]
[313626093,1707489038913,-523.53317799,0.00024556,2]
[313626095,1707489038923,-500.0,0.00024556,2]
[313626097,1707489038932,-290.43970962,0.00024556,2]
[313626108,1707489039010,-500.0,0.00024556,2]
[313626111,1707489039033,-847.14884633,0.00024556,2]
[313626113,1707489039043,-500.0,0.00024556,2]
[313626115,1707489039052,-500.0,0.00024556,2]
[313626117,1707489039064,-847.14884633,0.00024556,2]
[313626119,1707489039074,-500.0,0.00024556,2]
[313626121,1707489039083,-500.0,0.00024556,2]
[313626123,1707489039092,-364.74385499,0.00024556,2]
[313626125,1707489039102,-847.14884633,0.00024556,2]
[313626127,1707489039111,-847.14884633,0.00024556,2]
[313626129,1707489039121,-500.0,0.00024556,2]
[313626131,1707489039129,-847.14884633,0.00024556,2]
[313626132,1707489039139,-847.14884633,0.00024556,2]
[313626134,1707489039148,-342.74464673,0.00024556,2]
[313626136,1707489039158,-847.14884633,0.00024556,2]
[313626138,1707489039168,-847.14884633,0.00024556,2]
[313626140,1707489039177,-847.14884633,0.00024556,2]
[313626143,1707489039187,-847.14884633,0.00024556,2]
[313626145,1707489039197,-847.14884633,0.00024556,2]
[313626147,1707489039207,-847.14884633,0.00024556,2]
[313626149,1707489039217,-847.14884633,0.00024556,2]
[313626150,1707489039227,-847.14884633,0.00024556,2]
[313626152,1707489039237,-847.14884633,0.00024556,2]
[313626154,1707489039247,-847.14884633,0.00024556,2]
[313626156,1707489039257,-847.14884633,0.00024556,2]
[313626159,1707489039268,-847.14884633,0.00024556,2]
[313626161,1707489039284,-847.14884633,0.00024556,2]
[313626163,1707489039293,-847.14884633,0.00024556,2]
[313626165,1707489039303,-847.14884633,0.00024556,2]
[313626168,1707489039313,-847.14884633,0.00024556,2]
[313626170,1707489039327,-847.14884633,0.00024556,2]
[313626172,1707489039337,-847.14884633,0.00024556,2]
[313626174,1707489039348,-847.14884633,0.00024556,2]
[313626176,1707489039357,-847.14884633,0.00024556,2]
[313626178,1707489039367,-847.14884633,0.00024556,2]
[313626180,1707489039377,-847.14884633,0.00024556,2]
[313626182,1707489039386,-847.14884633,0.00024556,2]
[313626184,1707489039395,-847.14884633,0.00024556,2]
[313626186,1707489039404,-847.14884633,0.00024556,2]
[313626188,1707489039414,-847.14884633,0.00024556,2]
[313626190,1707489039426,-847.14884633,0.00024556,2]
[313626192,1707489039437,-847.14884633,0.00024556,2]
[313626194,1707489039447,-847.14884633,0.00024556,2]
[313626196,1707489039458,-847.14884633,0.00024556,2]
[313626198,1707489039468,-847.14884633,0.00024556,2]
[313626200,1707489039478,-847.14884633,0.00024556,2]
[313626202,1707489039488,-847.14884633,0.00024556,2]
[313626204,1707489039498,-847.14884633,0.00024556,2]
[313626206,1707489039510,-847.14884633,0.00024556,2]
[313626208,1707489039520,-847.14884633,0.00024556,2]
[313626210,1707489039537,-847.14884633,0.00024556,2]
[313626213,1707489039546,-847.14884633,0.00024556,2]
[313626214,1707489039556,-847.14884633,0.00024556,2]
[313626217,1707489039565,-847.14884633,0.00024556,2]
[313626219,1707489039575,-847.14884633,0.00024556,2]
[313626220,1707489039585,-847.14884633,0.00024556,2]
[313626223,1707489039595,-847.14884633,0.00024556,2]
[313626225,1707489039604,-847.14884633,0.00024556,2]
[313626227,1707489039615,-847.14884633,0.00024556,2]
[313626229,1707489039626,-847.14884633,0.00024556,2]
[313626231,1707489039635,-847.14884633,0.00024556,2]
[313626233,1707489039644,-847.14884633,0.00024556,2]
[313626234,1707489039654,-847.14884633,0.00024556,2]
[313626237,1707489039663,-847.14884633,0.00024556,2]
[313626239,1707489039673,-847.14884633,0.00024556,2]
[313626241,1707489039683,-847.14884633,0.00024556,2]
[313626243,1707489039693,-847.14884633,0.00024556,2]
[313626245,1707489039703,-847.14884633,0.00024556,2]
[313626247,1707489039712,-847.14884633,0.00024556,2]
[313626249,1707489039722,-847.14884633,0.00024556,2]
[313626251,1707489039731,-847.14884633,0.00024556,2]
[313626253,1707489039740,-847.14884633,0.00024556,2]
[313626255,1707489039749,-21141.89197977,0.00024557,2]
[313626257,1707489039758,-988.1154477,0.00024557,2]
[313626259,1707489039768,-1018.41805308,0.00024652,2]
[313626261,1707489039780,-824.52622886,0.00024653,2]
[313626262,1707489039789,-155.5427838,0.00024653,2]
[313626264,1707489039798,-155.10236756,0.00024653,2]
[313626266,1707489039807,-284.95703292,0.00024653,2]
[313626268,1707489039817,-155.71767531,0.00024653,2]
[313626270,1707489039826,-156.89297198,0.00024653,2]
[313626272,1707489039835,-169.44416868,0.00024653,2]
[313626274,1707489039845,-258.81600242,0.00024653,2]
[313626277,1707489039854,-189.21162469,0.00024654,2]
[313626279,1707489039864,-154.9690062,0.00024655,2]
[313626281,1707489039873,-156.66681756,0.00024655,2]
[313626283,1707489039882,-167.98778071,0.00024655,2]
[313626285,1707489039891,-1935.01724955,0.00024655,2]
[313626287,1707489039900,-155.11636113,0.00024655,2]
[313626289,1707489039909,-156.9901161,0.00024655,2]
[313626292,1707489039926,-692.26861691,0.00024655,2]
[313626294,1707489039940,-160.36068527,0.00024655,2]
[313626296,1707489039950,-1005.27290984,0.00024657,3]
[313626298,1707489039960,-506.93672384,0.00024657,2]
[313626300,1707489039969,-500.0,0.00024657,2]
[313626302,1707489039978,-500.0,0.00024657,2]
[313626304,1707489039987,-500.0,0.00024657,2]
[313626306,1707489039997,-500.0,0.00024657,2]
[313626308,1707489040006,-500.0,0.00024657,2]
[313626311,1707489040016,-511.69581219,0.00024657,2]
[313626313,1707489040026,-636.8005741,0.00024657,2]
[313626316,1707489040035,-220.09364356,0.00024657,2]
[313626318,1707489040045,-515.65188428,0.00024657,2]
[313626320,1707489040054,-605.18893686,0.00024657,2]
[313626322,1707489040063,-500.0,0.00024657,2]
[313626324,1707489040073,-500.0,0.00024657,2]
[313626326,1707489040082,-500.0,0.00024657,2]
[313626328,1707489040091,-500.0,0.00024657,2]
[313626331,1707489040100,-500.0,0.00024657,2]
[313626334,1707489040109,-325.77556447,0.00024657,2]
[313626336,1707489040119,-329.03624844,0.00024657,2]
[313626338,1707489040128,-500.0,0.00024657,2]
[313626340,1707489040137,-558.08990524,0.00024657,2]
[313626342,1707489040146,-500.0,0.00024657,2]
[313626344,1707489040156,-452.17203677,0.00024657,2]
[313626346,1707489040165,-500.0,0.00024657,2]
[313626348,1707489040174,-500.0,0.00024657,2]
[313626350,1707489040185,-506.22923825,0.00024657,2]
[313626352,1707489040194,-500.0,0.00024657,2]
[313626354,1707489040203,-500.0,0.00024657,2]
[313626356,1707489040212,-500.0,0.00024657,2]
[313626358,1707489040221,-599.69449967,0.00024657,2]
[313626360,1707489040231,-519.18241306,0.00024657,2]
[313626362,1707489040241,-521.35614295,0.00024657,2]
[313626364,1707489040250,-500.0,0.00024657,2]
[313626366,1707489040259,-500.0,0.00024657,2]
[313626368,1707489040269,-536.45719266,0.00024657,2]
[313626370,1707489040279,-500.0,0.00024657,2]
[313626372,1707489040288,-500.0,0.00024657,2]
[313626374,1707489040298,-500.0,0.00024657,2]
[313626376,1707489040307,-500.0,0.00024657,2]